[Event "German Championship Women 2022"]
[Site "Magdeburg"]
[Date "2022.08.19"]
[Round "8.10"]
[White "Just, Anita"]
[Black "Fock, Sana"]
[Result "0-1"]
[ECO "B92"]
[WhiteElo "1905"]
[BlackElo "1807"]
[Annotator "NA RC"]
[PlyCount "110"]
[EventDate "2022.08.14"]
[EventType "swiss"]
[EventCountry "GER"]
[SourceTitle "playchess.com"]
[Source "ChessBase"]
[SourceQuality "1"]
[TimeControl "40/5400+30:1800+30"]

1. e4 {[%emt 0:00:01]} c5 {[%emt 0:00:05]} 2. Nf3 {[%emt 0:00:06]} d6 {[%emt 0:00:06]} 3. d4 {[%emt 0:00:29]} cxd4 {[%emt 0:00:09]} 4. Nxd4 {[%emt 0:00:05]} Nf6 {[%emt 0:00:06]} 5. Nc3 {[%emt 0:00:08]} a6 {[%emt 0:00:17]} 6. Be2 {[%emt 0:00:13]} e5 {[%emt 0:00:24]} 7. Nb3 {[%emt 0:00:21]} Be7 {[%emt 0:00:24]} 8. O-O {[%emt 0:00:14]} O-O {[%emt 0:01:33]} 9. f4 {[%emt 0:02:16]} exf4 {[%emt 0:03:03]} 10. Bxf4 {[%emt 0:00:32]} Nc6 {[%emt 0:01:26]} 11. Kh1 {[%emt 0:02:26]} Ne5 {[%emt 0:06:02]} 12. Nd4 {[%emt 0:06:50]} h6 {[%emt 0:29:15]} 13. Nf5 {[%emt 0:06:42]} Bxf5 {[%emt 0:06:03]} 14. exf5 {[%emt 0:00:07]} Rc8 {[%emt 0:02:04]} 15. Qd4 {[%emt 0:08:56]} Qc7 {[%emt 0:08:51]} 16. Qf2 {[%emt 0:04:32]} Kh7 {[%emt 0:04:03]} 17. Rad1 {[%emt 0:05:13]} Rfd8 {[%emt 0:10:13]} 18. Rfe1 {[%emt 0:04:39]} Qa5 {[%emt 0:07:46]} 19. Bf3 {[%emt 0:06:57]} Rd7 {[%emt 0:06:02]} 20. Bxe5 {[%emt 0:11:37]} dxe5 {[%emt 0:00:10]} 21. Rxd7 {[%emt 0:00:14]} Nxd7 {[%emt 0:00:43]} 22. Bxb7 {[%emt 0:03:51]} Rb8 {[%emt 0:02:31]} 23. Be4 {[%emt 0:02:15]} Nf6 {[%emt 0:01:24]} 24. Nd1 {[%emt 0:03:56]} Rd8 {[%emt 0:01:38]} 25. Nc3 {[%emt 0:03:00]} Bb4 {[%emt 0:02:16]} 26. h3 {[%emt 0:12:58]} Bxc3 {[%emt 0:01:04]} 27. bxc3 {[%emt 0:00:08]} Qxc3 {[%emt 0:01:07]} 28. Bd3 {[%emt 0:01:45]} a5 {[%emt 0:01:01]} 29. Qe3 {[%emt 0:00:55]} e4 {[%emt 0:02:13]} 30. Bxe4 {[%emt 0:06:17]} Qxe3 {[%emt 0:00:13]} 31. Rxe3 {[%emt 0:00:04]} Re8 {[%emt 0:00:07]} 32. Ra3 {[%emt 0:00:06]} Rxe4 {[%emt 0:00:56]} 33. Rxa5 {[%emt 0:00:07]} Rc4 {[%emt 0:01:36]} 34. Ra7 {[%emt 0:00:12]} Rxc2 {[%emt 0:00:28]} 35. a4 {[%emt 0:00:25]} Nd5 {[%emt 0:01:03]} 36. Rxf7 {[%emt 0:04:09]} Kg8 {[%emt 0:00:28]} 37. Rd7 {[%emt 0:00:47]} Ne3 {[%emt 0:01:01]} 38. g4 {[%emt 0:01:00]} Ra2 {[%emt 0:00:25]} 39. Ra7 {[%emt 0:00:45]} Nc4 {[%emt 0:00:12]} 40. Kg1 {[%emt 0:00:25]} Kf8 {[%emt 0:00:50]} 41. Kh1 {[%emt 0:30:33]} Ne5 {[%emt 0:07:43]} 42. Kg1 {[%emt 0:00:00]} Nf3+ {[%emt 0:00:59]} 43. Kf1 {[%emt 0:00:00]} Ng5 {[%emt 0:02:15]} 44. h4 {[%emt 0:00:00]} Ne4 {[%emt 0:01:12]} 45. a5 {[%emt 0:00:00]} Ng3+ {[%emt 0:05:36]} 46. Kg1 {[%emt 0:00:00]} h5 {[%emt 0:02:17]} 47. Ra8+ {[%emt 0:00:00]} Kf7 {[%emt 0:01:01]} 48. Ra7+ {[%emt 0:00:00]} Kf6 {[%emt 0:04:44]} 49. Ra6+ {[%emt 0:00:00]} Ke5 {[%emt 0:01:00]} 50. gxh5 {[%emt 0:04:41]} Kf4 {[%emt 0:04:18]} 51. Rb6 {[%emt 0:01:57]} Kg4 {[%emt 0:00:52]} 52. Rb3 {[%emt 0:00:27]} Kh3 {[%emt 0:00:29]} 53. Rxg3+ {[%emt 0:00:25]} Kxg3 {[%emt 0:00:08]} 54. Kf1 {[%emt 0:00:03]} Rxa5 {[%emt 0:00:15]} 55. f6 {[%emt 0:00:43]} Rf5+ {[%emt 0:00:12]} 0-1

[Event "German Championship Women 2022"]
[Site "Magdeburg"]
[Date "2022.08.19"]
[Round "8.11"]
[White "Perez Celis, Alba"]
[Black "Storkebaum, Ulrike"]
[Result "0-1"]
[ECO "C44"]
[WhiteElo "1816"]
[BlackElo "1768"]
[Annotator "NA RC"]
[PlyCount "62"]
[EventDate "2022.08.14"]
[EventType "swiss"]
[EventCountry "GER"]
[SourceTitle "playchess.com"]
[Source "ChessBase"]
[SourceQuality "1"]
[TimeControl "40/5400+30:1800+30"]

1. e4 {[%emt 0:00:03]} e5 {[%emt 0:00:08]} 2. Nf3 {[%emt 0:00:13]} Nc6 {[%emt 0:00:04]} 3. c3 {[%emt 0:00:08]} Nf6 {[%emt 0:07:28]} 4. d4 {[%emt 0:00:48]} exd4 {[%emt 0:01:10]} 5. e5 {[%emt 0:01:03]} Ne4 {[%emt 0:03:58]} 6. cxd4 {[%emt 0:11:57]} Bb4+ {[%emt 0:04:05]} 7. Nbd2 {[%emt 0:00:27]} d5 {[%emt 0:01:13]} 8. Bb5 {[%emt 0:21:43]} O-O {[%emt 0:02:27]} 9. Bxc6 {[%emt 0:06:25]} bxc6 {[%emt 0:00:27]} 10. Qa4 {[%emt 0:00:38]} Bxd2+ {[%emt 0:02:05]} 11. Nxd2 {[%emt 0:00:45]} Bd7 {[%emt 0:05:15]} 12. Nxe4 {[%emt 0:02:21]} dxe4 {[%emt 0:00:10]} 13. Qc2 {[%emt 0:00:33]} f5 {[%emt 0:15:46]} 14. O-O {[%emt 0:04:34]} Qe7 {[%emt 0:02:17]} 15. Rd1 {[%emt 0:05:04]} Qe6 {[%emt 0:04:01]} 16. b3 {[%emt 0:03:02]} Qd5 {[%emt 0:06:26]} 17. Ba3 {[%emt 0:02:03]} Rfe8 {[%emt 0:00:54]} 18. Qd2 {[%emt 0:01:20]} a5 {[%emt 0:03:10]} 19. Bc5 {[%emt 0:03:16]} Be6 {[%emt 0:02:15]} 20. Rac1 {[%emt 0:01:42]} a4 {[%emt 0:00:45]} 21. Rc4 {[%emt 0:06:53]} axb3 {[%emt 0:00:37]} 22. axb3 {[%emt 0:00:02]} Qd7 {[%emt 0:00:39]} 23. Rc3 {[%emt 0:03:01]} Bd5 {[%emt 0:01:09]} 24. Rh3 {[%emt 0:02:23]} Qf7 {[%emt 0:00:31]} 25. b4 {[%emt 0:00:34]} Ra2 {[%emt 0:00:33]} 26. Qg5 {[%emt 0:00:39]} Rea8 {[%emt 0:06:59]} 27. Rc3 {[%emt 0:03:37]} f4 {[%emt 0:02:45]} 28. h4 {[%emt 0:07:26]} e3 {[%emt 0:00:33]} 29. f3 {[%emt 0:00:30]} h6 {[%emt 0:03:36]} 30. Qe7 {[%emt 0:01:02]} Qg6 {[%emt 0:00:57]} 31. g4 {[%emt 0:01:03]} Bxf3 0-1

[Event "German Championship Women 2022"]
[Site "Magdeburg"]
[Date "2022.08.19"]
[Round "8.12"]
[White "Mekus, Manuela"]
[Black "Peglau, Sarah"]
[Result "0-1"]
[ECO "A00"]
[WhiteElo "1638"]
[BlackElo "1782"]
[Annotator "NA"]
[PlyCount "44"]
[EventDate "2022.08.14"]
[EventType "swiss"]
[EventCountry "GER"]
[SourceTitle "playchess.com"]
[Source "ChessBase"]
[SourceQuality "1"]
[TimeControl "40/5400+30:1800+30"]

1. d3 {[%emt 0:00:08]} d5 {[%emt 0:00:23]} 2. c3 {[%emt 0:00:18]} e5 {[%emt 0:00:09]} 3. g3 {[%emt 0:00:14]} f5 {[%emt 0:01:24]} 4. Bg2 {[%emt 0:00:17]} Nf6 {[%emt 0:00:12]} 5. Nd2 {[%emt 0:00:16]} Bd6 {[%emt 0:08:30]} 6. e4 {[%emt 0:06:48]} c6 {[%emt 0:02:28]} 7. Ne2 {[%emt 0:05:18]} O-O {[%emt 0:01:05]} 8. O-O {[%emt 0:02:07]} f4 {[%emt 0:03:38]} 9. exd5 {[%emt 0:01:18]} Nxd5 {[%emt 0:04:54]} 10. Nf3 {[%emt 0:04:28]} Kh8 {[%emt 0:19:13]} 11. c4 {[%emt 0:05:09]} Ne7 {[%emt 0:02:07]} 12. Qc2 {[%emt 0:00:20]} c5 {[%emt 0:02:59]} 13. Nc3 {[%emt 0:00:32]} Nbc6 {[%emt 0:01:18]} 14. Ne4 {[%emt 0:01:29]} Bf5 {[%emt 0:09:54]} 15. b3 {[%emt 0:08:17]} Ng6 {[%emt 0:01:15]} 16. Bb2 {[%emt 0:00:37]} Nd4 {[%emt 0:01:48]} 17. Bxd4 {[%emt 0:00:30]} exd4 {[%emt 0:00:36]} 18. Nxd6 {[%emt 0:01:58]} Qxd6 {[%emt 0:00:06]} 19. Nd2 {[%emt 0:00:14]} Ne5 {[%emt 0:06:01]} 20. Ne4 {[%emt 0:00:53]} Bxe4 {[%emt 0:06:29]} 21. Bxe4 {[%emt 0:00:40]} f3 {[%emt 0:00:52]} 22. Qd2 {[%emt 0:01:49]} Qd7 {[%emt 0:01:57]} 0-1

[Event "German Championship Women 2022"]
[Site "Magdeburg"]
[Date "2022.08.20"]
[Round "9.1"]
[White "Schulze, Lara"]
[Black "Bazzazi, Elnaz"]
[Result "1-0"]
[ECO "B45"]
[WhiteElo "2292"]
[BlackElo "1766"]
[Annotator "TA"]
[PlyCount "41"]
[EventDate "2022.08.14"]
[EventType "swiss"]
[EventCountry "GER"]
[SourceTitle "playchess.com"]
[Source "ChessBase"]
[SourceQuality "1"]
[TimeControl "40/5400+30:1800+30"]

{[%evp 18,41,34,32,70,76,85,68,95,91,116,110,123,108,228,234,834,812,806,699,692,668,1003,971,908,603]} 1. e4 {[%emt 0:00:03]} c5 {[%emt 0:00:08]} 2. Nc3 {[%emt 0:00:48]} Nc6 {[%emt 0:01:11]} 3. Nf3 {[%emt 0:00:21]} e6 {[%emt 0:00:41]} 4. d4 {[%emt 0:01:36]} cxd4 {[%emt 0:00:06]} 5. Nxd4 {[%emt 0:00:04]} Bc5 {[%emt 0:00:15]} 6. Nb3 {[%emt 0:05:15]} Bb6 {[%emt 0:00:05]} 7. Be2 {[%emt 0:03:06]} Nge7 {[%emt 0:00:07]} 8. O-O {[%emt 0:00:34]} O-O {[%emt 0:00:07]} 9. Bf4 {[%emt 0:01:18]} f5 {[%emt 0:03:51]} 10. Bd6 {[%emt 0:05:52]} fxe4 {[%emt 0:01:30] B40: Sicilian: 2...e6, Unusual lines.} 11. Nxe4 {[%emt 0:00:41]} Rf7 {[%emt 0:05:01]} 12. c4 {[%emt 0:06:51][%cal Bc2c4,Bc4c5][%mdl 32] [#]} a5 $146 {[%emt 0:01:45] White is slightly better.} ({Predecessor:} 12... Nf5 13. c5 Bc7 14. Bh5 g6 15. Bf3 Ne5 16. Be2 b6 17. Nd4 Bb7 18. Nxf5 gxf5 19. cxb6 axb6 20. Bxc7 Qxc7 {0-1 (46) Tan,J (1663)-Cheah,E (1991) Penang 2018}) 13. c5 {[%emt 0:05:12]} Ba7 {[%emt 0:01:06]} 14. Nd4 {[%emt 0:07:52] White is much more active.} Nxd4 {[%emt 0:11:49]} 15. Qxd4 {[%emt 0:00:54]} b6 {[%emt 0:02:05]} (15... Nf5 $16 16. Qe5 b5) 16. Ng5 $18 {[%emt 0:07:57]} bxc5 $2 {[%emt 0:02:27] [#]} (16... Nc6 17. Qg4 (17. Nxf7 Nxd4 18. Nxd8 Nxe2+ 19. Kh1 bxc5 $15) (17. Qh4 h6 $11) 17... Rf6) 17. Qe4 {[%emt 0:04:58] White is clearly winning.} Rf5 {[%emt 0:03:43]} 18. Bxe7 {[%emt 0:03:00]} Qxe7 {[%emt 0:01:52]} 19. Qxa8 {[%emt 0:00:18]} Rxg5 {[%emt 0:00:20]} 20. Qxc8+ {[%emt 0:00:27]} Kf7 {[%emt 0:00:21]} 21. Qb7 {[%emt 0:00:37] Black did not feel at home in the position after the opening.  Weighted Error Value: White=0.20 (precise) /Black=0.42} 1-0

[Event "German Championship Women 2022"]
[Site "Magdeburg"]
[Date "2022.08.20"]
[Round "9.2"]
[White "Moenster, Madita"]
[Black "Voicu-Jagodzinsky, Carmen"]
[Result "0-1"]
[ECO "C11"]
[WhiteElo "1864"]
[BlackElo "2258"]
[Annotator "TA"]
[PlyCount "72"]
[EventDate "2022.08.14"]
[EventType "swiss"]
[EventCountry "GER"]
[SourceTitle "playchess.com"]
[Source "ChessBase"]
[SourceQuality "1"]
[TimeControl "40/5400+30:1800+30"]

{[%evp 17,72,0,2,0,16,0,0,0,0,-8,68,0,6,0,0,-90,-101,-156,-163,-179,-72,-107,-107,-156,-148,-160,-114,-144,-144,-327,-354,-543,-499,-775,-745,-721,-684,-839,-659,-677,-676,-684,-586,-780,-780,-1466,-1465,-1726,-1397,-2160,-2167,-29986,-29987,-29987,-29988,-29988,-1989]} 1. e4 {[%emt 0:00:03]} e6 {[%emt 0:00:04]} 2. d4 {[%emt 0:00:06]} d5 {[%emt 0:00:04]} 3. Nc3 {[%emt 0:00:07]} Nf6 {[%emt 0:00:03]} 4. e5 {[%emt 0:00:07]} Nfd7 {[%emt 0:00:04]} 5. f4 {[%emt 0:00:09]} c5 {[%emt 0:00:11]} 6. Nf3 {[%emt 0:00:07]} Nc6 {[%emt 0:00:23]} 7. Be3 {[%emt 0:00:10]} a6 {[%emt 0:00:05]} 8. Qd2 {[%emt 0:00:26]} b5 {[%emt 0:00:04]} 9. dxc5 {[%emt 0:00:15]} Bxc5 {[%emt 0:01:13]} 10. Bd3 {[%emt 0:00:51] C11: French: Classical System: 4 e5 and 4 Bg5 dxe4.} h6 {[%emt 0:00:54]} ({Don't do} 10... d4 11. Nxd4 Nxd4 12. Ne4 $16) 11. Bf2 {[%emt 0:04:42]} Qb6 {[%emt 0:01:24]} 12. O-O {[%emt 0:01:16] The position is equal.} O-O {[%emt 0:01:18]} 13. a3 {[%emt 0:02:39] [#]} b4 $146 {[%emt 0:04:29]} ({Better is} 13... Ra7 $11) ({Predecessor:} 13... f6 14. exf6 Nxf6 15. Rae1 Bd7 16. b4 Bxf2+ 17. Qxf2 Qxf2+ 18. Kxf2 g5 19. Ne2 Rf7 20. fxg5 hxg5 {1-0 (52) Deac,B (2679)-Grischuk,A (2764) Chess.com INT 2022}) 14. axb4 {[%emt 0:08:28]} ({White should try} 14. Na4 $1 $14 Bxf2+ 15. Rxf2) 14... Qxb4 {[%emt 0:00:27]} 15. Na4 {[%emt 0:07:09]} Bxf2+ {[%emt 0:04:06]} 16. Qxf2 {[%emt 0:01:54]} (16. Rxf2 $11 Qxd2 17. Rxd2) 16... Qxf4 $17 {[%emt 0:04:55]} 17. g3 {[%emt 0:07:18]} (17. Rfe1 $142) 17... Qb4 {[%emt 0:02:02]} 18. c3 {[%emt 0:01:12]} Qe7 {[%emt 0:03:21]} (18... Qb8 $19 {has better winning chances.} 19. b4 Ndxe5 20. Nxe5 Nxe5) 19. Qe3 {[%emt 0:03:31]} a5 {[%emt 0:04:03]} 20. Rfe1 {[%emt 0:08:32]} (20. Nb6 $142 Rb8 21. Nxd7 Bxd7 22. Rab1) 20... Ba6 {[%emt 0:00:57]} 21. Bc2 {[%emt 0:02:00]} f6 {[%emt 0:10:08]} ({Black should play} 21... Rfb8 22. b3 Rb7) 22. exf6 {[%emt 0:02:13]} Rxf6 {[%emt 0:00:49] [#] aiming for ...Qf7.} 23. Rad1 $2 {[%emt 0:04:09] This move loses the game for White.} (23. Nb6 $17 {might work better.} Rxf3 24. Qxf3 Nxb6 25. Qe3) 23... Qf7 $19 {[%emt 0:05:10]} 24. Nd4 {[%emt 0:02:51]} (24. Nc5 {was forced.} Rxf3 25. Qxe6 Qxe6 26. Nxe6) 24... Nce5 {[%emt 0:05:16][%cal Bc6e5,Be5g4,Bg4f2][%mdl 32]} 25. b4 {[%emt 0:15:21]} (25. Nb6 $142 Nxb6 26. Qxe5) 25... Ng4 {[%emt 0:03:29]} 26. Qc1 {[%emt 0:00:24]} Nde5 {[%emt 0:18:49]} 27. Rd2 {[%emt 0:06:26]} Nc4 {[%emt 0:05:51]} 28. Rde2 {[%emt 0:02:10]} e5 {[%emt 0:01:16]} 29. b5 {[%emt 0:02:43]} Bb7 {[%emt 0:01:32]} 30. h3 {[%emt 0:09:46]} Nf2 {[%emt 0:01:07]} 31. Nc6 {[%emt 0:06:30]} Nxh3+ {[%emt 0:00:21]} 32. Kg2 {[%emt 0:00:14]} Bxc6 {[%emt 0:08:31]} 33. bxc6 {[%emt 0:00:10]} Ng5 {[%emt 0:00:47] [#] ( -> ...Qh5)} 34. Rf1 {[%emt 0:02:23]} Rf8 {[%emt 0:00:19] Black mates.} 35. Rxf6 {[%emt 0:00:46]} Qxf6 {[%emt 0:00:09]} 36. Qe1 {[%emt 0:00:35]} Qxc6 {[%emt 0:01:18] Weighted Error Value: White=1.08/Black=0.33} (36... Qf3+ $142 37. Kg1 Qh5 38. Rf2 Nh3+ 39. Kg2 Nxf2 40. Qxf2 Rxf2+ 41. Kxf2 Qh2+ 42. Kf3 Qxc2 43. Nc5 e4+ 44. Nxe4 dxe4+ 45. Kg4 Qe2+ 46. Kh3 Ne3 47. g4 Qxg4+ 48. Kh2 Qg2#) 0-1

[Event "German Championship Women 2022"]
[Site "Magdeburg"]
[Date "2022.08.20"]
[Round "9.3"]
[White "Muetsch, Annmarie"]
[Black "Braun, Kristin"]
[Result "1-0"]
[ECO "B23"]
[WhiteElo "2249"]
[BlackElo "1897"]
[Annotator "TA"]
[PlyCount "109"]
[EventDate "2022.08.14"]
[EventType "swiss"]
[EventCountry "GER"]
[SourceTitle "playchess.com"]
[Source "ChessBase"]
[SourceQuality "1"]
[TimeControl "40/5400+30:1800+30"]

{[%evp 9,109,40,51,46,45,35,39,28,36,32,13,27,24,11,91,91,87,108,93,73,97,117,111,104,143,109,177,164,185,179,307,303,310,326,314,263,261,268,267,256,255,256,275,275,287,282,312,313,296,288,324,321,324,330,309,299,334,328,351,323,389,344,386,362,384,376,547,522,560,541,589,588,884,881,829,736,891,839,1101,974,1410,1372,1143,1120,1054,1019,1050,1010,1041,994,1227,1230,1786,1825,1722,1802,2141,1987,2216,2081,29990,29991]} 1. e4 {[%emt 0:00:14]} c5 {[%emt 0:00:03]} 2. Nc3 {[%emt 0:00:15]} g6 {[%emt 0:00:12]} 3. d4 {[%emt 0:00:16]} cxd4 {[%emt 0:00:04]} 4. Qxd4 {[%emt 0:00:06]} Nf6 {[%emt 0:00:04]} 5. Be3 {[%emt 0:00:15]} Nc6 {[%emt 0:01:04]} 6. Qd2 {[%emt 0:00:09] B23: Closed Sicilian: Lines without g3.} Bg7 {[%emt 0:01:06]} 7. f3 {[%emt 0:01:24] Prevents Ng4.} d6 {[%emt 0:01:46]} 8. O-O-O {[%emt 0:00:17] White is slightly better.} Be6 {[%emt 0:00:43]} 9. Nge2 {[%emt 0:01:02][%cal Bg1e2,Be2c1,Bc1b3][%mdl 32]} Qa5 {[%emt 0:07:39]} 10. Kb1 {[%emt 0:06:29]} b5 {[%emt 0:11:34]} 11. Nc1 {[%emt 0:07:30] [#]} b4 $146 {[%emt 0:04:57] [#]} (11... a6 $11 {remains equal.}) ({Predecessor:} 11... a6 12. Nb3 Qc7 13. Bh6 Bxh6 14. Qxh6 Qb6 15. Nd5 Bxd5 16. exd5 Nb4 17. c4 Rc8 {½-½ (26) Nekhaev,A (2487)-Cerrato,R (2485) ICCF email 2017}) 12. Nd5 $1 $16 {[%emt 0:03:52]} O-O {[%emt 0:14:38]} 13. Nb3 {[%emt 0:06:48]} Qd8 {[%emt 0:02:31]} 14. Bb5 {[%emt 0:03:41]} Bxd5 {[%emt 0:02:29]} 15. exd5 {[%emt 0:04:15]} Ne5 {[%emt 0:02:00]} 16. Qxb4 {[%emt 0:15:43]} Qc7 {[%emt 0:04:29]} 17. Rhe1 {[%emt 0:06:47]} Rab8 {[%emt 0:01:41] [#]} (17... a6 $16 {was necessary.} 18. Be2 Rfc8) 18. Qa4 $1 $36 {[%emt 0:01:19][%mdl 2048] White is really pushing.} Rfc8 {[%emt 0:02:06]} 19. c3 {[%emt 0:02:05] Active counter play!} Qb7 {[%emt 0:04:00]} (19... a6 {was worth a try.} 20. Bxa6 (20. Qxa6 Bh6 $16) 20... Ra8) 20. Ba6 {[%emt 0:01:14] A strong pair of Bishops.} Qc7 {[%emt 0:03:28]} 21. f4 {[%emt 0:03:42]} Nc4 {[%emt 0:09:24][%cal Oc4b2]} 22. Qxc4 {[%emt 0:00:47]} (22. Bxc8 Qxc8 23. Qc6 (23. Bxa7 Nxb2 24. Kxb2 Nxd5 $11) 23... Qf5+ 24. Ka1 Nxe3 25. Rxe3 Qg4 $18) 22... Qxc4 23. Bxc4 {[%emt 0:00:04]} Rxc4 {[%emt 0:01:06]} 24. Bxa7 {[%emt 0:00:07]} Ra8 {[%emt 0:07:31]} 25. Bd4 {[%emt 0:01:20]} (25. Rxe7 $6 Rxf4 26. Rb7 Bf8 $18) 25... Rca4 {[%emt 0:02:24]} 26. a3 {[%emt 0:04:33]} ({Much less strong is} 26. Rxe7 Nxd5 27. Rd7 Rxa2 28. Bxg7 (28. Rxd6 Nxf4 29. Bxg7 Kxg7 $18) 28... Ne3 $18) 26... Rb8 {[%emt 0:00:50]} 27. Kc2 {[%emt 0:00:28]} ({Weaker is} 27. Rxe7 Rxb3 28. Rde1 Rb5 $15) 27... Rb7 {[%emt 0:01:46]} 28. Bxf6 {[%emt 0:01:38]} Bxf6 {[%emt 0:00:17]} 29. g3 {[%emt 0:00:28]} Ra8 {[%emt 0:00:22]} 30. Re4 {[%emt 0:01:28]} Rc7 {[%emt 0:01:43]} 31. Rd3 {[%emt 0:01:20]} Kf8 {[%emt 0:04:22]} 32. Rb4 {[%emt 0:01:13]} Rac8 {[%emt 0:01:33]} 33. Nd2 {[%emt 0:02:38]} Bg7 {[%emt 0:02:03]} 34. c4 {[%emt 0:01:11]} h6 {[%emt 0:01:27]} 35. Rb6 {[%emt 0:05:03]} g5 {[%emt 0:00:30]} 36. f5 {[%emt 0:02:28]} Be5 {[%emt 0:00:16]} 37. b4 {[%emt 0:02:13]} h5 {[%emt 0:00:29]} (37... Ra8 {was called for.} 38. Rb5 Kg7) 38. Kb3 {[%emt 0:01:58]} h4 {[%emt 0:00:52]} 39. a4 {[%emt 0:00:37][%cal Ba3a4,Ba4a5][%mdl 32]} hxg3 {[%emt 0:00:11]} 40. hxg3 {[%emt 0:00:06]} Kg7 {[%emt 0:00:21]} 41. Rc6 {[%emt 0:38:44]} Rxc6 {[%emt 0:32:58]} 42. dxc6 {[%emt 0:00:05]} Rxc6 {[%emt 0:00:03][%mdl 4096] Endgame KRB-KRN} 43. a5 {[%emt 0:00:32]} e6 {[%emt 0:00:36]} 44. fxe6 {[%emt 0:00:46]} fxe6 {[%emt 0:00:01]} 45. b5 {[%emt 0:00:46]} Rc8 {[%emt 0:00:25]} 46. Ne4 {[%emt 0:01:03]} Rd8 {[%emt 0:02:18]} 47. Nxg5 {[%emt 0:01:00]} Kf6 {[%emt 0:00:13]} 48. Ne4+ {[%emt 0:00:28]} Kf5 {[%emt 0:00:55]} 49. Nc3 {[%emt 0:00:00]} d5 {[%emt 0:00:00]} 50. cxd5 {[%emt 0:00:00]} exd5 {[%emt 0:00:00]} 51. Rxd5 {[%emt 0:00:00]} Rc8 {[%emt 0:00:00]} 52. Rd3 {[%emt 0:00:00]} Ke6 {[%emt 0:00:00]} 53. b6 {[%emt 0:00:00]} Rc5 {[%emt 0:00:00]} 54. Kb4 {[%emt 0:00:00]} Bd6 {[%emt 0:00:00] [#]} 55. Rxd6+ $1 {[%emt 0:00:00] Weighted Error Value: White=0.08 (flawless) /Black=0.33} 1-0

[Event "German Championship Women 2022"]
[Site "Magdeburg"]
[Date "2022.08.20"]
[Round "9.4"]
[White "Birkholz, Olga"]
[Black "Kunze, Kerstin"]
[Result "1-0"]
[ECO "A05"]
[WhiteElo "2002"]
[BlackElo "2020"]
[Annotator "NA RC"]
[PlyCount "61"]
[EventDate "2022.08.14"]
[EventType "swiss"]
[EventCountry "GER"]
[SourceTitle "playchess.com"]
[Source "ChessBase"]
[SourceQuality "1"]
[TimeControl "40/5400+30:1800+30"]

1. Nf3 Nf6 2. g3 c5 3. Bg2 g6 4. c3 Bg7 5. O-O O-O 6. d4 cxd4 7. cxd4 d5 8. Nc3 Ne4 9. Qb3 Nxc3 10. bxc3 Nc6 11. Bf4 e6 12. h4 h6 13. Rad1 Na5 14. Qb4 Re8 15. e4 dxe4 16. Ne5 g5 17. hxg5 hxg5 18. Bxg5 f6 19. Bh4 Qc7 20. Ng4 Kf7 21. Bxe4 f5 22. Ne5+ Bxe5 23. dxe5 Qxe5 24. Bf3 Kg6 25. Rfe1 Qc7 26. Qd4 e5 27. Qe3 f4 28. Qe4+ Bf5 29. Bh5+ Kxh5 30. Qxf5+ Kh6 31. Bg5+ 1-0

[Event "German Championship Women 2022"]
[Site "Magdeburg"]
[Date "2022.08.20"]
[Round "9.5"]
[White "Zhou, Lepu Coco"]
[Black "Bluebaum, Johanna"]
[Result "1-0"]
[ECO "C01"]
[WhiteElo "1986"]
[BlackElo "2013"]
[Annotator "NA RC"]
[PlyCount "109"]
[EventDate "2022.08.14"]
[EventType "swiss"]
[EventCountry "GER"]
[SourceTitle "playchess.com"]
[Source "ChessBase"]
[SourceQuality "1"]
[TimeControl "40/5400+30:1800+30"]

1. e4 {[%emt 0:00:06]} e6 {[%emt 0:00:05]} 2. d4 {[%emt 0:00:05]} d5 {[%emt 0:00:06]} 3. exd5 {[%emt 0:00:06]} exd5 {[%emt 0:00:06]} 4. Bd3 {[%emt 0:00:12]} Nf6 {[%emt 0:03:39]} 5. Nf3 {[%emt 0:01:34]} Bg4 {[%emt 0:00:35]} 6. O-O {[%emt 0:01:41]} Be7 {[%emt 0:00:09]} 7. Be3 {[%emt 0:03:07]} O-O {[%emt 0:02:15]} 8. Nbd2 {[%emt 0:01:49]} Nbd7 {[%emt 0:01:39]} 9. c4 {[%emt 0:05:51]} c6 {[%emt 0:12:49]} 10. c5 {[%emt 0:08:40]} a5 $14 {[%emt 0:04:26]} 11. Qc2 {[%emt 0:06:53]} h6 {[%emt 0:04:06]} 12. h3 {[%emt 0:02:36]} Be6 {[%emt 0:00:25]} 13. Rfc1 {[%emt 0:06:51]} Qc7 {[%emt 0:01:35]} 14. Rab1 {[%emt 0:08:35]} Nh5 {[%emt 0:03:29]} 15. b4 {[%emt 0:02:58]} a4 {[%emt 0:03:28]} 16. b5 {[%emt 0:01:28]} Nf4 {[%emt 0:01:02]} 17. Bf1 {[%emt 0:01:41]} g6 {[%emt 0:04:24]} 18. b6 {[%emt 0:05:00]} Qb8 {[%emt 0:00:28]} 19. Rb4 {[%emt 0:01:11]} Bf5 {[%emt 0:00:14]} 20. Qd1 {[%emt 0:01:04]} g5 {[%emt 0:07:26]} 21. Rxa4 {[%emt 0:03:45]} Rxa4 {[%emt 0:16:38]} 22. Qxa4 {[%emt 0:00:08]} Qa8 {[%emt 0:00:02]} 23. Qb3 {[%emt 0:06:22]} Ne6 {[%emt 0:03:27]} 24. a4 {[%emt 0:10:20]} Bf6 {[%emt 0:00:44]} 25. Qa3 {[%emt 0:01:35]} Nb8 {[%emt 0:03:25]} 26. a5 {[%emt 0:01:02]} Na6 {[%emt 0:00:04]} 27. Bd3 {[%emt 0:02:42]} Bxd3 {[%emt 0:00:58]} 28. Qxd3 {[%emt 0:00:05]} Re8 {[%emt 0:03:32]} 29. Qf5 {[%emt 0:03:08]} Qd8 {[%emt 0:02:17]} 30. h4 {[%emt 0:01:10]} Ng7 {[%emt 0:07:18]} 31. Qh3 {[%emt 0:00:46]} Re6 {[%emt 0:03:10]} 32. hxg5 {[%emt 0:01:17]} hxg5 {[%emt 0:00:06]} 33. Qg4 {[%emt 0:00:49]} Qd7 {[%emt 0:04:00]} 34. Nxg5 {[%emt 0:03:53]} Bxg5 {[%emt 0:00:09]} 35. Qxg5 {[%emt 0:00:04]} Rg6 {[%emt 0:00:07]} 36. Qe5 {[%emt 0:01:57]} Qg4 {[%emt 0:02:11]} 37. Qh2 {[%emt 0:03:06]} Nf5 {[%emt 0:00:39]} 38. f3 {[%emt 0:01:49]} Qh4 {[%emt 0:03:19]} 39. Qxh4 {[%emt 0:00:05]} Nxh4 {[%emt 0:00:05]} 40. g4 {[%emt 0:00:09]} Nf5 {[%emt 0:01:19]} 41. Kf2 {[%emt 0:32:50]} Ng7 {[%emt 0:30:38]} 42. Nf1 {[%emt 0:00:00]} Re6 {[%emt 0:00:00]} 43. Bd2 {[%emt 0:00:00]} f5 {[%emt 0:00:00]} 44. Re1 {[%emt 0:00:00]} Kf7 {[%emt 0:00:00]} 45. Ng3 {[%emt 0:00:00]} fxg4 {[%emt 0:00:00]} 46. fxg4 {[%emt 0:00:00]} Rf6+ {[%emt 0:00:00]} 47. Kg2 {[%emt 0:00:00]} Rg6 {[%emt 0:00:00]} 48. Kh3 {[%emt 0:00:00]} Ne6 {[%emt 0:00:00]} 49. Nf5 {[%emt 0:00:00]} Naxc5 {[%emt 0:00:00]} 50. dxc5 {[%emt 0:00:00]} Nxc5 {[%emt 0:00:00]} 51. Re7+ {[%emt 0:00:00]} Kf6 {[%emt 0:00:00]} 52. Be1 {[%emt 0:00:00]} Rg8 {[%emt 0:00:00]} 53. Bh4+ {[%emt 0:00:00]} Kg6 {[%emt 0:00:00]} 54. Rc7 {[%emt 0:00:00]} Nb3 {[%emt 0:00:00]} 55. Ne7+ {[%emt 0:00:00]} 1-0